Cogmind - Beta 14 @@@ ROGUE MODE // 2024.10.23 @ 00:23:09 Player: Komeiji O. Result: Self-destructed Performance ------------- Evolutions (3) 1500 Regions Visited (6) 1200 Robots Destroyed (92) 460 Value Destroyed (3393) 3393 Prototype IDs (6) 120 Alien Tech Used (0) 0 Bonus (1020) 1020 TOTAL SCORE: 7693 Bonus ------- High Alert Combat Kills 165 Follower Combat Kills 315 Entered Garrisons 200 Used RIF Installer 500 Friendly Fire -160 Cogmind --------- Core Integrity 43/700 Matter 18/300 Energy 100/100 System Corruption 8% Temperature Cool (0) Movement Core (50) Location -7/Factory Parts ------- > --- POWER (1) -------- (None) > --- PROPULSION (4) --- (None) > --- UTILITY (5) ------ Advanced Targeting Computer > --- WEAPON (3) ------- (None) > --- INVENTORY (5) ---- Structural Scanner Authchip [Propulsion] Relay Coupler [Specialist] (18) Relay Coupler [Heavy] (11) Relay Coupler [Heavy] (14) Peak State ------------ > --- POWER ------------ Light Nuclear Core > --- PROPULSION ------- Light Treads Armored Treads Advanced Treads > --- UTILITY ---------- Improved Heat Sink Huge Storage Unit Advanced Targeting Computer Hacking Suite > --- WEAPON ----------- Gauss Rifle Gauss Rifle Ripper > --- INVENTORY -------- Light Nuclear Core Light Treads Wheel Structural Scanner Seismic Detector Hacking Suite Authchip [R/NC] Authchip [R/Combat] Authchip [Propulsion] Authchip [Processor] Relay Coupler [NC] Relay Coupler [NC] Relay Coupler [Swarmer] Relay Coupler [Swarmer] Relay Coupler [Grunt] Relay Coupler [Brawler] Relay Coupler [Sentry] Relay Coupler [Sentry] Relay Coupler [Sentry] Relay Coupler [Specialist] Relay Coupler [Hunter] Relay Coupler [Heavy] Relay Coupler [Heavy] Particle Cannon Grenade Launcher [Rating: 39] Favorites ----------- Power Ion Engine Engine Ion Engine Power Core Nuclear Core Propulsion Light Treads Treads Light Treads Wheel Wheel Utility Huge Storage Unit Device Seismic Detector Storage Huge Storage Unit Processor Advanced Targeting Computer Hackware Hacking Suite Protection Makeshift Light Armor Plating Weapon Gauss Rifle Energy Gun Advanced Beam Rifle Ballistic Gun Gauss Rifle Ballistic Cannon Light Cannon Launcher Grenade Launcher Special Weapon Mining Laser Slashing Weapon Ripper Special Melee Weapon Datajack Build | -11 -10 -10 -8 -8 -8 -7 ------- Run | Yrd Mat Sub Mat Gar Mat Fac Slots Evolved 6 | . . . 4 . . 2 Power . | . . . . . . . Propulsion 2 | . . . 1 . . 1 Utility 3 | . . . 2 . . 1 Weapon 1 | . . . 1 . . . Parts Attached 127 | 8 5 15 26 34 24 15 Power 11 | 1 . 2 2 3 2 1 Engine 9 | 1 . 2 2 2 1 1 Core 2 | . . . . 1 1 . Reactor . | . . . . . . . Propulsion 27 | 2 1 4 8 6 4 2 Treads 20 | 2 . 1 5 6 4 2 Leg . | . . . . . . . Wheel 7 | . 1 3 3 . . . Hover . | . . . . . . . Flight . | . . . . . . . Utility 31 | 2 1 5 9 7 2 5 Device 13 | 1 . 2 5 2 1 2 Storage 2 | 1 1 . . . . . Processor 4 | . . . 2 1 1 . Hackware 1 | . . . . 1 . . Protection 11 | . . 3 2 3 . 3 Artifact . | . . . . . . . Weapon 58 | 3 3 4 7 18 16 7 Energy Gun 10 | 3 1 1 1 1 3 . Energy Cannon . | . . . . . . . Ballistic Gun 23 | . . 2 4 4 10 3 Ballistic Cannon 3 | . 1 . . 2 . . Launcher 11 | . . 1 . 5 3 2 Special Weapon 1 | . 1 . . . . . Impact Weapon . | . . . . . . . Slashing Weapon 9 | . . . 2 5 . 2 Piercing Weapon . | . . . . . . . Special Melee Weapon 1 | . . . . 1 . . Unidentified Prototypes 4 | . . . 1 . 3 . Parts Lost 25 | . . 1 1 11 1 11 Power 3 | . . . . 2 . 1 Propulsion 7 | . . . . 3 1 3 Utility 4 | . . . . 2 . 2 Weapon 11 | . . 1 1 4 . 5 Highest Loss Streak 8 | . . 1 1 7 1 8 To Critical Strikes . | . . . . . . . Average Slot Usage (%) 99 | . 100 100 99 99 99 95 Engine 7 | . 14 14 9 6 2 6 Core 2 | . . . . 2 6 . Treads 22 | . 15 14 17 26 26 27 Wheel 4 | . 12 14 9 . . . Device 6 | . 14 . 9 8 1 5 Storage 9 | . 14 14 9 9 9 6 Processor 8 | . . . 10 8 16 10 Hackware 3 | . . . . 2 9 6 Protection 5 | . . 13 6 6 . 4 Energy Gun 3 | . 13 1 7 2 . . Ballistic Gun 13 | . . 9 15 7 21 18 Ballistic Cannon 2 | . 11 4 . 3 . . Launcher 3 | . . 8 . 6 . . Slashing Weapon 3 | . . . 2 5 4 2 Peak Build Rating 39 | 7 9 17 38 38 39 39 Average Rating 28 | 5 8 13 30 34 37 36 On Entrance 20 | . 7 9 17 37 37 36 Naked Turns . | . . . . . . . Heaviest Build 104 | 13 91 94 100 102 100 104 Greatest Support 84 | 40 40 20 84 84 62 80 Greatest Overweight (x) 9 | . 5 5 9 1 1 1 Average Overweight (x) 2 | . 4 4 3 1 1 . Largest Inventory Capacity 25 | 8 25 25 25 25 25 25 Average Capacity 24 | 7 23 25 25 25 25 24 Most Carried 25 | 4 22 25 25 25 25 25 Average Carried 23 | 3 15 23 24 24 24 24 Final Capacity 25 | 8 25 25 25 25 25 5 Final Carried 25 | 4 22 24 25 25 25 5 Class Distribution -------------------- 60% | Mutant 13% | Scavenger-Gunner 9% | Tank 6% | Gunner 3% | Bomber 3% | Scavenger-Mutant Dominant Class ---------------- Mutant | -10/Materials Mutant | -10/Subcaves Tank | -8/Materials Mutant | -8/Garrison Scavenger-Gunner | -8/Materials Scavenger-Gunner | -7/Factory Resources | -11 -10 -10 -8 -8 -8 -7 ----------- Run | Yrd Mat Sub Mat Gar Mat Fac Matter Collected 2934 | 216 272 334 461 830 452 369 Remotely . | . . . . . . . Salvage Created 3025 | 17 111 101 564 877 940 415 Parts 176 | 2 10 3 36 51 42 32 Haulers Intercepted 9 | . . . 4 . 5 . Recyclers Shooed 2 | . . . 1 . 1 . Parts Field Recycled . | . . . . . . . Retrieved Matter . | . . . . . . . Parts Self-Destructed 8 | . . 8 . . . . Prevented . | . . . . . . . Kills | -11 -10 -10 -8 -8 -8 -7 ------- Run | Yrd Mat Sub Mat Gar Mat Fac Combat Hostiles Destroyed 67 | . 5 3 9 25 14 11 Melee 2 | . . . . 1 . 1 Guns 33 | . . 1 9 8 9 6 Cannons 8 | . 5 1 . 2 . . AOE 24 | . . 1 . 14 5 4 Classes Destroyed 15 | 1 3 1 5 1 2 2 Worker 3 | . . . 1 . . 2 Builder 3 | . . . . . 2 1 Tunneler 2 | 1 . . . . . 1 Hauler 9 | . . . 4 . 5 . Recycler 3 | . . . . . 3 . Operator 1 | . 1 . . . . . Watcher 3 | . . . 2 . 1 . Swarmer 23 | . 3 . 4 7 5 4 Grunt 24 | . 2 . . 10 8 4 Brawler 1 | . . . . . . 1 Duelist 1 | . . . . 1 . . Sentry 10 | . . . 4 4 2 . Hunter 4 | . . . 1 3 . . Programmer 2 | . . . . . . 2 Subdweller 3 | . . 3 . . . . Best Kill Streak 7 | 1 3 1 4 4 7 4 Combat Bots Only 5 | . 3 1 3 4 5 3 Max Kills in Single Turn 3 | 1 1 1 2 3 2 3 Gunslinging . | . . . . . . . Exploded 3 | . . 1 . 3 2 2 Melee 1 | . . . . 1 . 1 Uniques/NPCs Destroyed . | . . . . . . . Combat | -11 -10 -10 -8 -8 -8 -7 -------- Run | Yrd Mat Sub Mat Gar Mat Fac Hostile Shots Fired 523 | . 21 16 42 216 61 167 Missed 163 | . 3 6 11 75 23 45 Damage Taken 5670 | . 178 314 367 2148 546 2117 Core 1280 | . 46 169 29 247 132 657 Absorbed by Shields 8 | . . . . 8 . . Regen/Repaired (Parts) 262 | . . . . . . 262 Core Remaining (%) 46 | 100 . 14 . . 25 . Volleys Fired 230 | 8 39 29 27 58 41 28 Largest 3 | 2 2 2 3 3 3 3 Hottest 135 | 80 100 135 116 134 81 80 Shots Fired 449 | 16 44 40 73 119 93 64 Gun 322 | 16 5 7 73 85 80 56 Cannon 42 | . 17 7 . 12 6 . Launcher 43 | . . 6 . 22 7 8 Special 42 | . 22 20 . . . . Kinetic 286 | . 17 13 51 63 86 56 Thermal 110 | 16 22 20 22 30 . . Explosive 40 | . . 6 . 19 7 8 Electromagnetic 13 | . 5 1 . 7 . . Robot Hit Streak 25 | 5 6 13 11 25 19 9 Robot Miss Streak 5 | 1 5 3 4 5 3 5 Penetration Max 1 | . . . . . 1 1 Secondary Targets 7 | . . . 1 2 2 2 Max Gunslinging Chain 1 | . . . 1 1 1 1 Shots Hit Robots 292 | 14 12 14 49 88 66 49 Core Hits 181 | 1 6 8 25 62 38 41 Critical Kills . | . . . . . . . Critical Parts Destroyed . | . . . . . . . Critical Strikes 6 | . 2 . 2 1 . 1 Burn 3 | . . . 2 1 . . Blast 1 | . 1 . . . . . Corrupt 1 | . 1 . . . . . Sever 1 | . . . . . . 1 Melee Attacks 50 | . . . 6 27 2 15 Impact . | . . . . . . . Slashing 46 | . . . 6 23 2 15 Piercing . | . . . . . . . Sneak Attacks 5 | . . . 1 4 . . Combat Hostiles . | . . . . . . . Follow-up Attacks . | . . . . . . . Damage Inflicted 8368 | 157 199 305 997 3118 1843 1749 Guns 4098 | 157 26 75 910 1023 1110 797 Cannons 425 | . 173 109 . 76 67 . Explosions 3016 | . . 73 . 1665 598 680 Melee 781 | . . . 87 354 68 272 Ramming . | . . . . . . . Kinetic 3598 | . 173 174 690 587 1177 797 Thermal 926 | 157 . 48 220 501 . . Explosive 2849 | . . 73 . 1498 598 680 Electromagnetic 214 | . 26 10 . 178 . . Impact . | . . . . . . . Slashing 781 | . . . 87 354 68 272 Piercing . | . . . . . . . Highest Corruption 8 | . 1 1 . . 1 8 Average Corruption 1 | . 1 1 . . 1 4 Corruption Purged . | . . . . . . . Corruption Blocked . | . . . . . . . Effects 32 | . 4 7 . . 4 17 Message Errors 4 | . . 2 . . 1 1 Matter Fused 11 | . 1 3 . . 2 5 Heat Flow Errors 4 | . 1 2 . . . 1 Energy Discharges 4 | . 1 . . . . 3 Parts Fused 2 | . . . . . 1 1 Data Loss (minor) 5 | . 1 . . . . 4 Data Loss (major) 1 | . . . . . . 1 Misfires 1 | . . . . . . 1 Overload Shots . | . . . . . . . Overflow Damage 85 | . . . . 72 12 1 Projectiles . | . . . . . . . Explosions 85 | . . . . 72 12 1 Melee . | . . . . . . . Knockbacks 1 | . 1 . . . . . Impact . | . . . . . . . Kinetic 1 | . 1 . . . . . Secondary . | . . . . . . . Self-Inflicted Damage 233 | . . 40 . 147 32 14 Shots 13 | . . 2 . 9 1 1 Rammed . | . . . . . . . Targets Rammed . | . . . . . . . Kicked . | . . . . . . . Crushed . | . . . . . . . Highest Temperature 250 | 54 250 250 180 225 78 239 Average Temperature 47 | 23 41 104 60 56 27 50 Received Heat Transfer 1152 | . 18 45 63 621 207 198 Effects 1 | . . . . 1 . . Interference 1 | . . . . 1 . . Siege Activations . | . . . . . . . Robots Corrupted . | . . . . . . . Combat Hostiles . | . . . . . . . Parts Fried 1 | . . . . 1 . . Impact Corruptions . | . . . . . . . Robots Melted . | . . . . . . . Combat Hostiles . | . . . . . . . Parts Melted 2 | . . . 2 . . . Heat Transferred 1961 | 350 . 100 555 956 . . Parts Sabotaged . | . . . . . . . Parts Stolen . | . . . . . . . Parts Stripped . | . . . . . . . Power Chain Reactions 2 | . . . . 2 . . Alert | -11 -10 -10 -8 -8 -8 -7 ------- Run | Yrd Mat Sub Mat Gar Mat Fac Peak Influence 1103 | 5 152 . 268 1103 750 221 Initial 537 | . 3 . . 59 537 219 Average 307 | 1 46 . 88 532 440 148 Maximum Alert Level 4 | . . . 1 4 3 1 Low Security (%) 43 | 100 100 . 92 16 . 61 Level 1 23 | . . . 7 18 41 38 Level 2 22 | . . . . 30 52 . Level 3 9 | . . . . 29 5 . Level 4 1 | . . . . 6 . . Level 5 . | . . . . . . . High Security . | . . . . . . . Max Security . | . . . . . . . Squads Dispatched 7 | . 1 . . . 2 4 Investigation 2 | . . . . . 1 1 Extermination 2 | . . . . . . 2 Reinforcement 3 | . 1 . . . 1 1 Assault . | . . . . . . . Garrison . | . . . . . . . Intercept . | . . . . . . . Searches Triggered . | . . . . . . . Construction Impeded 1 | . . . . . . 1 Haulers Reinforced . | . . . . . . . Active Scanning Responses . | . . . . . . . Cargo Convoy Interrupts 1 | . . . . . . 1 Stealth | -11 -10 -10 -8 -8 -8 -7 --------- Run | Yrd Mat Sub Mat Gar Mat Fac Distress Signals 7 | . . . 3 . 3 1 Communications Jammed . | . . . . . . . Distress Signals . | . . . . . . . Times Spotted 117 | . 8 4 16 31 28 30 Peak Tracking Total 12 | . 3 2 5 5 5 12 Tactical Retreats 2 | . . . . 1 . 1 Traps | -11 -10 -10 -8 -8 -8 -7 ------- Run | Yrd Mat Sub Mat Gar Mat Fac Traps Triggered 9 | . 1 1 1 4 2 . Indirectly . | . . . . . . . Trap Hack Attempts . | . . . . . . . Triggered . | . . . . . . . Disarmed . | . . . . . . . Reprogrammed . | . . . . . . . Reused 1 | . . 1 . . . . Traps Extracted . | . . . . . . . Installed 1 | . . 1 . . . . Triggered . | . . . . . . . Most Traps Carried 1 | . . 1 . . . . Machines | -11 -10 -10 -8 -8 -8 -7 ---------- Run | Yrd Mat Sub Mat Gar Mat Fac Machines Disabled 12 | . . . 1 5 5 1 Max in Single Turn 1 | . . . 1 1 1 1 Garrison Relay 4 | . . . . 4 . . Machines Repaired . | . . . . . . . Machines Dismantled . | . . . . . . . Machines Sabotaged . | . . . . . . . Overloaded Fab Kills . | . . . . . . . Hacking | -11 -10 -10 -8 -8 -8 -7 --------- Run | Yrd Mat Sub Mat Gar Mat Fac Machines Accessed 25 | . 3 . 7 3 10 2 Terminals 21 | . 3 . 5 3 9 1 Fabricators . | . . . . . . . Repair Stations 1 | . . . . . . 1 Recycling Units 2 | . . . 1 . 1 . Scanalyzers . | . . . . . . . Garrison Access 1 | . . . 1 . . . Total Hacks 70 | . 10 . 24 5 26 5 Successful 34 | . 6 . 10 3 12 3 Failed 36 | . 4 . 14 2 14 2 Catastrophic 2 | . . . . 1 1 . Database Lockouts . | . . . . . . . Manual 36 | . 5 . 11 . 19 1 Terminals 61 | . 10 . 21 5 24 1 Fabricators . | . . . . . . . Repair Stations 4 | . . . . . . 4 Recycling Units 4 | . . . 2 . 2 . Scanalyzers . | . . . . . . . Garrison Access 1 | . . . 1 . . . Terminal Hacks 16 | . 3 . 5 3 5 . Part Schematic 1 | . . . . . 1 . Prototype ID Bank 1 | . . . 1 . . . Open Door 1 | . . . . 1 . . Emergency Access Points 1 | . . . . 1 . . Unreport Threat 4 | . . . 2 . 2 . Locate Traps 3 | . 1 . 1 . 1 . Hauler Manifests 1 | . . . 1 . . . Registered Components 1 | . 1 . . . . . Zone Layout 2 | . 1 . . . 1 . Patrol Navigation 1 | . . . . 1 . . Fabricator Hacks . | . . . . . . . Repair Station Hacks 3 | . . . . . . 3 Scan Component 2 | . . . . . . 2 Repair 1 | . . . . . . 1 Recycling Unit Hacks 1 | . . . 1 . . . Retrieve Matter 1 | . . . 1 . . . Scanalyzer . | . . . . . . . Garrison Access Hacks 1 | . . . 1 . . . Unlock Access 1 | . . . 1 . . . Unauthorized Hacks 13 | . 3 . 3 . 7 . Terminals 12 | . 3 . 3 . 6 . Track 1 | . . . . . 1 . Botnet 11 | . 3 . 3 . 5 . Fabricators . | . . . . . . . Repair Stations . | . . . . . . . Recycling Units 1 | . . . . . 1 . Mask 1 | . . . . . 1 . Scanalyzers . | . . . . . . . Garrison Access . | . . . . . . . Data Cores Recovered . | . . . . . . . Used . | . . . . . . . Hacking Detections 21 | . 2 . 6 2 9 2 Full Trace Events 2 | . . . . . 1 1 Feedback Events 1 | . . . . . 1 . Corruption 1 | . . . . . 1 . Feedback Blocked . | . . . . . . . Robot Schematics Acquired . | . . . . . . . Robots Built . | . . . . . . . Authchips . | . . . . . . . Time . | . . . . . . . Total Robot Build Rating . | . . . . . . . Part Schematics Acquired 1 | . . . . . 1 . Parts Built . | . . . . . . . Authchips . | . . . . . . . Time . | . . . . . . . Total Part Build Rating . | . . . . . . . Parts Repaired 1 | . . . . . . 1 Time 53 | . . . . . . 53 Parts Recycled . | . . . . . . . Recycled Matter . | . . . . . . . Retrieved Matter . | . . . . . . . Retrieved Components . | . . . . . . . Parts Scanalyzed . | . . . . . . . Part Schematics Acquired . | . . . . . . . Parts Damaged . | . . . . . . . Bothacking | -11 -10 -10 -8 -8 -8 -7 ------------ Run | Yrd Mat Sub Mat Gar Mat Fac Used RIF Installer 1 | . . . . 1 . . Robots Hacked . | . . . . . . . Non-combat . | . . . . . . . Combat . | . . . . . . . Robot Hacks Applied . | . . . . . . . Relay Couplers Released 18 | . . . . 18 . . Machine Destruction 18 | . . . . 18 . . Fabnet Peak Effective % . | . . . . . . . Robots Rewired 3 | . . . . 3 . . Allies Hacked . | . . . . . . . Hacks Repelled . | . . . . . . . Allies | -11 -10 -10 -8 -8 -8 -7 -------- Run | Yrd Mat Sub Mat Gar Mat Fac Total Allies 5 | . . . . 5 . . Largest Group 3 | . . . . 3 2 . Highest-Rated Group 86 | . . . . 86 55 . Highest-Rated Ally 39 | . . . . 39 39 . Total Orders 2 | . . . . 2 . . STAY 1 | . . . . 1 . . FOLLOW 1 | . . . . 1 . . Ally Attacks 78 | . . . . 49 29 . Total Damage 1022 | . . . . 614 408 . Kills 15 | . . . . 6 9 . Allies Corrupted . | . . . . . . . Allies Melted . | . . . . . . . Intel | -11 -10 -10 -8 -8 -8 -7 ------- Run | Yrd Mat Sub Mat Gar Mat Fac Robot Analysis Total . | . . . . . . . Derelict Logs Recovered . | . . . . . . . Drone Launches . | . . . . . . . Drone Recoveries . | . . . . . . . Exploration | -11 -10 -10 -8 -8 -8 -7 ------------- Run | Yrd Mat Sub Mat Gar Mat Fac Turns Passed 8736 | 197 715 1425 1352 2021 1942 1084 Spaces Moved 3662 | 100 308 797 663 709 731 354 Core 8 | 2 . . . . . 6 Treads 2147 | 98 45 . 216 709 731 348 Legs . | . . . . . . . Wheels 1507 | . 263 797 447 . . . Hover . | . . . . . . . Flight . | . . . . . . . Fastest Speed 50 | 50 160 150 140 238 238 50 Average Speed 202 | 157 172 159 173 238 240 238 Slowest Speed 243 | 160 175 175 240 243 243 243 Overloaded Moves . | . . . . . . . Propulsion Burnouts . | . . . . . . . Robots Hopped . | . . . . . . . Cave-ins Triggered . | . . . . . . . Exploration Rate (%) 42 | 5 56 43 42 77 65 9 Regions Visited 6 Branch Regions 1 Pre-discovered Areas . | . . . . . . . Known Exits Taken 1 | . . . 1 . . . Unknown Exits Taken 4 | 1 1 1 . . 1 . Scrap Searched 10 | . . 10 . . . . Spaces Dug 38 | . . 20 5 7 . 6 Terrain Destroyed 149 | . 2 34 5 46 24 38 Melee 14 | . . . 5 3 . 6 Projectile 4 | . 2 . . . 2 . AOE 131 | . . 34 . 43 22 32 Terrain Rammed . | . . . . . . . Walls Destroyed . | . . . . . . . Machines Disabled . | . . . . . . . Actions | -11 -10 -10 -8 -8 -8 -7 --------- Run | Yrd Mat Sub Mat Gar Mat Fac Total 4450 | 119 401 872 806 895 838 519 Wait 210 | . 31 2 35 19 23 100 Move 3656 | 99 307 796 662 708 730 354 Hop . | . . . . . . . Pick Up 95 | 4 18 15 25 24 7 2 Fast Attach 16 | 7 . . 2 2 3 2 Attach 23 | . . 1 5 11 1 5 Detach 1 | . . . . . . 1 Swap 89 | 1 5 14 19 22 20 8 Drop 70 | . 1 14 25 15 11 4 Fire 230 | 8 39 29 27 58 41 28 Melee 50 | . . . 6 27 2 15 Ram . | . . . . . . . Kick . | . . . . . . . Crush . | . . . . . . . Escape Stasis 8 | . . . . 8 . . Rewire 1 | . . . . 1 . . Trap 1 | . . 1 . . . . Miscellaneous . | . . . . . . . Route ------- -11/Scrapyard -10/Materials (discovered 5 exits: [*Mat x3] / [*Min] / [*Sub]) -10/Subcaves -8/Materials (discovered 2 exits: *Fac / Gar) -8/Garrison (discovered 4 exits: *Mat x4) -8/Materials -7/Factory History --------- Turn | Location | Event 19 | -11/Scrapyard | Discovered new exit (range 16) 198 | -11/Scrapyard | Entered Materials 329 | -10/Materials | Build established: Mutant 398 | -10/Materials | Discovered new exit (range 4) 646 | -10/Materials | Discovered new exit (range 16) 696 | -10/Materials | Discovered new exit (range 5) 742 | -10/Materials | Discovered new exit (range 18) 907 | -10/Materials | Discovered new exit (range 3) 913 | -10/Materials | Entered Subcaves 923 | -10/Subcaves | A swath of the cavern ceiling suddenly collapsed 1303 | -10/Subcaves | Disturbed a concealed Subdweller 1321 | -10/Subcaves | Core integrity fell below 50% 1720 | -10/Subcaves | Core integrity fell below 20% 2269 | -10/Subcaves | Discovered new exit (range 7) 2338 | -10/Subcaves | Entered Materials 2338 | -8/Materials | Evolved 4 slots: Propulsion x1, Utility x2, Weapon x1 3033 | -8/Materials | Discovered new exit (range 11) 3378 | -8/Materials | Build established: Tank 3428 | -8/Materials | Identified exit to Garrison 3686 | -8/Materials | Build established: Mutant 3690 | -8/Materials | Entered Garrison 3960 | -8/Garrison | Triggered checkpoint 4019 | -8/Garrison | Garrison Relay disabled 4121 | -8/Garrison | Triggered checkpoint 4230 | -8/Garrison | Triggered checkpoint 4304 | -8/Garrison | Lost 7 parts (1p3n3w) 4360 | -8/Garrison | Triggered checkpoint 4426 | -8/Garrison | Garrison Relay disabled 4550 | -8/Garrison | Discovered new exit (range 8) 4658 | -8/Garrison | Triggered checkpoint 4742 | -8/Garrison | Discovered new exit (range 12) 4754 | -8/Garrison | Triggered checkpoint 4801 | -8/Garrison | Discovered new exit (range 5) 4994 | -8/Garrison | Triggered checkpoint 5159 | -8/Garrison | Rescued a captive Derelict 5167 | -8/Garrison | Rescued a captive Derelict 5246 | -8/Garrison | Triggered checkpoint 5326 | -8/Garrison | Triggered checkpoint 5481 | -8/Garrison | Discovered new exit (range 14) 5505 | -8/Garrison | Installed Relay Interface Framework 5550 | -8/Garrison | Build established: Bomber 5566 | -8/Garrison | Garrison Relay disabled 5584 | -8/Garrison | Core integrity fell below 50% 5711 | -8/Garrison | Entered Materials 5711 | -8/Materials | Accompanied by 2 allies 6078 | -8/Materials | Build established: Scavenger-Mutant 6379 | -8/Materials | Build established: Mutant 6897 | -8/Materials | Discovered new exit (range 20) 7319 | -8/Materials | Build established: Scavenger-Gunner 7653 | -8/Materials | Entered Factory 7653 | -7/Factory | Evolved 2 slots: Propulsion x1, Utility x1 8123 | -7/Factory | Build established: Mutant 8365 | -7/Factory | Repaired Broken Arm. Treads 8684 | -7/Factory | Cargo convoy interrupted 8724 | -7/Factory | Core integrity fell below 50% 8733 | -7/Factory | Core integrity fell below 20% 8737 | -7/Factory | Self-destructed Last Messages --------------- 08712_ Gauss Rifle destroyed. 08712_ Dropped Huge Storage Unit. 08712_ Dropped Deuterium Engine. 08713_ Dropped Arm. Treads. 08713_ Dropped Hrd. Light Armor Plating. 08714_ Discarded Seismic Detector. 08714_ Slug penetrates Wall. 08715_ U-05 Engineer lays Concrete. 08718_ 4QXM2BI0UYDD4O1YSHIOO,UGN88TW 08718_ U-05 Engineer lays Concrete. 08719_ H-55 Commando destroyed. 08720_ U-05 Engineer lays Concrete. 08724_ W-25 Informer sends out distress signal. 08727_ U-05 Engineer builds a Wall. 08727_ U-05 Engineer lays Concrete. 08728_ U-05 Engineer builds a Wall. 08728_ U-05 Engineer lays Concrete. 08730_ X-67 Chaingunner Minigun severed. 08730_ U-05 Engineer lays Concrete. 08737_ Ripper destroyed. Map ----- +----------------------------------------------------+ | ?????????????????????????????????????????????????? | | ?????????????????????????????????????????????????? | | ?????????????????????????????????????????????????? | | ?????????????????????????????????????????????????? | | ?????????????????????????????????????????????????? | | ?????????????????????????????????????????????????? | | ?????????????????????????????????????????????????? | | ?????????????????????????????????????????????????? | | ?????????????????????##########??????????????????? | | ?????????????????????# #?????????########## | | ?????????????????????# #?????????# """""""" | | ?????????????????????# #?????????# """"T"" | | ?????????????????????# #?????????# | | ?????????????????????# #?????????# | | ?????????????????????# #?????????# | | ?????????????????????# #?????????# """ "" | | ?????????????????????#! #?????????# """ "" | | ?????????????????????#!!* #?????????# """ "" | | ????????????????????##!!! #?????????# [=[ | | ????????????????????#!!!!! #????????## = = ! | | ????????????????????##!!!! ##################+# | | ?????????????????????#!!= p | | ?????????????????????#! ################ | | ?????????????????????# u #??????????# # | | ?????????????????????# =u ##?????????## # | | ?????????????????????# [i@ ##??????????#### | | ?????????????????????# =%x%u ##????????????## | | ?????????????????????#####+####?????########## | | ??????????????????????? % ???? | | ?????????????????????? == ?? ^ | | ?????????????????????? """" ""?? """" """" = | | ?????????????????????? """" """????"" """" | | ????????????????????? """" """? """" """" ! | | ????????????????????? ? | | ????????????????????? ""????"???"""" """" | | ????????????????????? "????????????? """" | | ????????????????????? "????????????" """" | | ?????????????????????? ???????? | | ?????????????????????? "?????????"""" """" | | ?????????????????????? ????????????"" """" | | ????????????????????????????????????????? """" | | ?????????????????????????????????????????? | | ???????????????????????????????????????? """" | | ????????????????????????????????????????? """" | | ??????????????????????????????????????????"""" | | ??????????????????????????????????????????? | | ??????????????????????????????????????????? | | ??????????????????????????????????????????+####### | | ?????????????????????????????????????????????????? | | ?????????????????????????????????????????????????? | +----------------------------------------------------+ Best States ------------- Heat Dissipation 45 Energy Generation 15 Energy Capacity 275 Matter Stores 300 Matter Capacity 300 Sight Range 21 Terrain Scan Density 10 Armor Coverage 325 Evasion (%) 40 Targeting Accuracy 8 Recoil Reduction 7 Offensive Hacking 10 Authchip Count 5 Item Schematics ----------------- Datajack | -8/Materials | Hacked Robot Schematics ------------------ None Fabricated ------------ Nothing Alien Tech Used ----------------- None Achievements -------------- None Challenges ------------ None Game ------ Seed LightningDisassembledRifle Manual? 0 Play Time 01:26:32 Cumulative 103.0 hours Start 2024.10.22 @ 22:58:13 End 2024.10.23 @ 00:23:09 Sessions 1 Manual Loads 0 Difficulty Rogue Special Mode None Game No. 37 Rogue 36 Adventurer 1 Explorer 0 Win Type - Total 2 Types 2/0/0/0/0/0/0/0/0 Lore% 27 Gallery% 49 Achievement% 41 Wizard Run 0 Options --------- Layout 0 ASCII 1 Keyboard 1 Movement Vi Keybinds 0 Fullscreen 2 Font 36/Terminus++ Map View 76x50 Zoom Use 0% Tactical HUD 1 Map Filters NONE Filters NONE Steam 1 RUN: 36faeb5b-b867-4331-867c-9de319c9a571